fUST/lending_fUST_20251006
["ID","MTS","AMOUNT","RATE_DAILY","PERIOD"]
[389592132,1759735381903,-500.0,0.00031788,60]
[389592133,1759735381940,-500.0,0.00031788,60]
[389592134,1759735381977,-500.0,0.00031788,60]
[389592135,1759735382014,-500.0,0.00031788,60]
[389592136,1759735382050,-500.0,0.00031788,60]
[389592137,1759735382085,-439.30230129,0.00031788,60]
[389592138,1759735382117,-500.0,0.00031788,60]
[389592139,1759735382149,-500.0,0.00031788,60]
[389592140,1759735382179,-500.0,0.00031788,60]
[389592141,1759735382212,-500.0,0.00031788,60]
[389592142,1759735382243,-500.0,0.00031788,60]
[389592143,1759735382272,-500.0,0.00031788,60]
[389592144,1759735382302,-500.0,0.00031788,60]
[389592145,1759735382331,-294.4,0.00031788,60]
[389592146,1759735382364,-500.0,0.00031788,60]
[389592147,1759735382397,-500.0,0.00031788,60]
[389592148,1759735382428,-500.0,0.00031788,60]
[389592149,1759735382464,-500.0,0.00031788,60]
[389592150,1759735382495,-500.0,0.00031788,60]
[389592151,1759735382525,-500.0,0.00031788,60]
[389592152,1759735382559,-500.0,0.00031788,60]
[389592153,1759735382591,-500.0,0.00031788,60]
[389592154,1759735382622,-500.0,0.00031788,60]
[389592155,1759735382651,-404.8930515,0.00031788,60]
[389592156,1759735382681,-754.05,0.00031788,60]
[389592157,1759735382713,-754.05,0.00031788,60]
[389592158,1759735382746,-754.05,0.00031788,60]
[389592159,1759735382778,-754.05,0.00031788,60]
[389592160,1759735382810,-754.05,0.00031788,60]
[389592161,1759735382841,-754.05,0.00031788,60]
[389592162,1759735382877,-754.05,0.00031788,60]
[389592163,1759735382915,-754.05,0.00031788,60]
[389592164,1759735382949,-754.05,0.00031788,60]
[389592165,1759735382982,-754.05,0.00031788,60]
[389592166,1759735383021,-754.05,0.00031788,60]
[389592167,1759735383053,-754.05,0.00031788,60]
[389592168,1759735383085,-754.05,0.00031788,60]
[389592169,1759735383116,-754.05,0.00031788,60]
[389592170,1759735383146,-754.05,0.00031788,60]
[389592171,1759735383296,-754.05,0.00031788,60]
[389592172,1759735383332,-754.05,0.00031788,60]
[389592173,1759735383366,-754.05,0.00031788,60]
[389592174,1759735383399,-754.05,0.00031788,60]
[389592175,1759735383435,-754.05,0.00031788,60]
[389592176,1759735383469,-754.05,0.00031788,60]
[389592177,1759735383502,-754.05,0.00031788,60]
[389592178,1759735383534,-754.05,0.00031788,60]
[389592179,1759735383566,-754.10742177,0.00031788,60]
[389592180,1759735383598,-500.0,0.00031788,60]
[389592181,1759735383636,-500.0,0.00031788,60]
[389592182,1759735383676,-500.0,0.00031788,60]
[389592183,1759735383711,-500.0,0.00031788,60]
[389592184,1759735383750,-500.0,0.00031788,60]
[389592185,1759735383785,-500.0,0.00031788,60]
[389592186,1759735383821,-500.0,0.00031788,60]
[389592187,1759735383860,-223.28,0.00031788,60]
[389592188,1759735383894,-1587.59,0.00031788,60]
[389592189,1759735383928,-1587.59,0.00031788,60]
[389592190,1759735383963,-1587.59,0.00031788,60]
[389592191,1759735383999,-1587.59,0.00031788,60]
[389592192,1759735384034,-1587.59,0.00031788,60]
[389592193,1759735384069,-1587.59,0.00031788,60]
[389592194,1759735384103,-1587.59,0.00031788,60]
[389592195,1759735384136,-1587.59,0.00031788,60]
[389592196,1759735384168,-1587.59,0.00031788,60]
[389592197,1759735384200,-1587.59,0.00031788,60]
[389592198,1759735384231,-1587.59,0.00031788,60]
[389592199,1759735384263,-1587.59,0.00031788,60]
[389592200,1759735384297,-1587.59,0.00031788,60]
[389592201,1759735384331,-1587.59,0.00031788,60]
[389592202,1759735384365,-1587.59,0.00031788,60]
[389592203,1759735384397,-1587.59,0.00031788,60]
[389592204,1759735384429,-1587.59,0.00031788,60]
[389592205,1759735384461,-1587.59,0.00031788,60]
[389592206,1759735384493,-1587.59,0.00031788,60]
[389592207,1759735384527,-1587.59,0.00031788,60]
[389592208,1759735384559,-1587.59,0.00031788,60]
[389592209,1759735384591,-1587.59,0.00031788,60]
[389592210,1759735384624,-1587.59,0.00031788,60]
[389592211,1759735384660,-1587.59,0.00031788,60]
[389592212,1759735384693,-719.87,0.00031788,60]
[389592213,1759735384726,-719.87,0.00031788,60]
[389592214,1759735384761,-719.87,0.00031788,60]
[389592215,1759735384796,-719.87,0.00031788,60]
[389592216,1759735384829,-719.87,0.00031788,60]
[389592217,1759735384864,-719.87,0.00031788,60]
[389592218,1759735384903,-719.87,0.00031788,60]
[389592219,1759735384941,-719.87,0.00031788,60]
[389592220,1759735384978,-719.87,0.00031788,60]
[389592221,1759735385014,-719.87,0.00031788,60]
[389592222,1759735385050,-719.87,0.00031788,60]
[389592223,1759735385084,-719.87,0.00031788,60]
[389592224,1759735385117,-719.87,0.00031788,60]
[389592225,1759735385150,-719.87,0.00031788,60]
[389592226,1759735385183,-719.87,0.00031788,60]
[389592227,1759735385216,-719.87,0.00031788,60]
[389592228,1759735385250,-719.87,0.00031788,60]
[389592229,1759735385283,-719.87,0.00031788,60]
[389592230,1759735385317,-719.87,0.00031788,60]
[389592231,1759735385348,-719.87,0.00031788,60]
[389592232,1759735385381,-719.87,0.00031788,60]
[389592233,1759735385412,-719.87,0.00031788,60]
[389592234,1759735385444,-719.87,0.00031788,60]
[389592235,1759735385477,-720.02,0.00031788,60]
[389592236,1759735385509,-825.75,0.00031788,60]
[389592237,1759735385541,-825.75,0.00031788,60]
[389592238,1759735385573,-825.75,0.00031788,60]
[389592239,1759735385603,-825.75,0.00031788,60]
[389592240,1759735385633,-825.75,0.00031788,60]
[389592241,1759735385664,-825.75,0.00031788,60]
[389592242,1759735385695,-825.75,0.00031788,60]
[389592243,1759735385728,-825.75,0.00031788,60]
[389592244,1759735385761,-825.75,0.00031788,60]
[389592245,1759735385795,-825.75,0.00031788,60]
[389592246,1759735385828,-825.75,0.00031788,60]
[389592247,1759735385862,-825.75,0.00031788,60]
[389592248,1759735385899,-825.75,0.00031788,60]
[389592249,1759735385935,-825.75,0.00031788,60]
[389592250,1759735385971,-825.75,0.00031788,60]
[389592251,1759735386007,-825.75,0.00031788,60]
[389592252,1759735386042,-825.75,0.00031788,60]
[389592253,1759735386079,-1732.18,0.00031788,60]
[389592254,1759735386115,-825.75,0.00031788,60]
[389592255,1759735386152,-1732.18,0.00031788,60]
[389592256,1759735386190,-825.75,0.00031788,60]
[389592257,1759735386229,-1732.18,0.00031788,60]
[389592258,1759735386267,-825.75,0.00031788,60]
[389592259,1759735386309,-1732.18,0.00031788,60]
[389592260,1759735386347,-825.75,0.00031788,60]
[389592261,1759735386382,-1732.18,0.00031788,60]
[389592262,1759735386415,-825.75,0.00031788,60]
[389592263,1759735386450,-1732.18,0.00031788,60]
[389592264,1759735386598,-825.75,0.00031788,60]
[389592265,1759735386632,-1732.18,0.00031788,60]
[389592266,1759735386663,-825.84,0.00031788,60]
[389592267,1759735386696,-1732.18,0.00031788,60]
[389592268,1759735386733,-1732.18,0.00031788,60]
[389592269,1759735386767,-1732.18,0.00031788,60]
[389592270,1759735386804,-1732.18,0.00031788,60]
[389592271,1759735386838,-1732.18,0.00031788,60]
[389592272,1759735386873,-1732.18,0.00031788,60]
[389592273,1759735386909,-1732.18,0.00031788,60]
[389592274,1759735386945,-1732.18,0.00031788,60]
[389592275,1759735386980,-1732.18,0.00031788,60]
[389592276,1759735387015,-1732.18,0.00031788,60]
[389592277,1759735387051,-1732.18,0.00031788,60]
[389592278,1759735387085,-1732.18,0.00031788,60]
[389592279,1759735387118,-1732.18,0.00031788,60]
[389592280,1759735387153,-1732.18,0.00031788,60]
[389592281,1759735387189,-1732.18,0.00031788,60]
[389592282,1759735387224,-1732.18,0.00031788,60]
[389592283,1759735387263,-1732.33,0.00031788,60]
[389592284,1759735387299,-500.0,0.00031788,60]
[389592285,1759735387334,-500.0,0.00031788,60]
[389592286,1759735387372,-500.0,0.00031788,60]
[389592287,1759735387409,-500.0,0.00031788,60]
[389592288,1759735387446,-500.0,0.00031788,60]
[389592289,1759735387483,-500.0,0.00031788,60]
[389592290,1759735387519,-500.0,0.00031788,60]
[389592291,1759735387553,-500.0,0.00031788,60]
[389592292,1759735387590,-500.0,0.00031788,60]
[389592293,1759735387624,-500.0,0.00031788,60]
[389592294,1759735387658,-528.39787592,0.00031788,60]
[389592295,1759735387692,-1651.42,0.00031788,60]
[389592296,1759735387727,-1651.42,0.00031788,60]
[389592297,1759735387767,-1041.7,0.00031788,60]
[389592298,1759735387801,-1651.42,0.00031788,60]
[389592299,1759735387837,-1041.7,0.00031788,60]
[389592300,1759735387870,-1651.42,0.00031788,60]
[389592301,1759735387904,-1041.7,0.00031788,60]
[389592302,1759735387938,-1651.42,0.00031788,60]
[389592303,1759735387971,-1041.7,0.00031788,60]
[389592304,1759735388005,-1651.42,0.00031788,60]
[389592305,1759735388038,-1041.7,0.00031788,60]
[389592306,1759735388074,-1651.42,0.00031788,60]
[389592307,1759735388110,-1041.7,0.00031788,60]
[389592308,1759735388147,-1041.7,0.00031788,60]
[389592309,1759735388186,-1041.7,0.00031788,60]
[389592310,1759735388224,-1651.42,0.00031788,60]
[389592311,1759735388261,-1041.7,0.00031788,60]
[389592312,1759735388298,-1651.42,0.00031788,60]
[389592313,1759735388334,-1651.42,0.00031788,60]
[389592314,1759735388371,-1651.42,0.00031788,60]
[389592315,1759735388406,-1651.42,0.00031788,60]
[389592316,1759735388440,-1041.7,0.00031788,60]
[389592317,1759735388477,-1651.42,0.00031788,60]
[389592318,1759735388512,-1041.7,0.00031788,60]
[389592319,1759735388550,-1651.42,0.00031788,60]
[389592320,1759735388588,-1041.7,0.00031788,60]
[389592321,1759735388627,-1651.42,0.00031788,60]
[389592322,1759735388663,-1041.7,0.00031788,60]
[389592323,1759735388701,-1651.42,0.00031788,60]
[389592324,1759735388739,-654.92926567,0.00031788,60]
[389592325,1759735389917,160.522931,0.00025,30]
[389592326,1759735390005,-15384.84901966,0.00026117,30]
[389592327,1759735390048,-2591.0463,0.00027,30]
[389592328,1759735390088,-533.6495537,0.00027,30]
[389592329,1759735390125,-160.0,0.00027,30]
[389592330,1759735390162,-234.17717776,0.00027,30]
[389592331,1759735390198,-293.61728183,0.00027,30]
[389592332,1759735390234,-286235.380351,0.000274,30]
[389592333,1759735390266,-200.0,0.000275,30]
[389592334,1759735390298,-200.0,0.000275,30]
[389592335,1759735390329,-380835.31374191,0.000276,30]
[389592336,1759735390363,-1000.0,0.00027626,30]
[389592337,1759735390395,-244.0,0.00027626,30]
[389592338,1759735390426,-4218.13707947,0.0002785,60]
[389592339,1759735390458,-653.3305672,0.00028,60]
[389592340,1759735390488,-533.6495537,0.00028,30]
[389592341,1759735390518,-160.0,0.00028,30]
[389592342,1759735390549,-234.17717776,0.00028,30]
[389592343,1759735390580,-293.61728183,0.00028,30]
[389592344,1759735390612,-9000.0,0.0002867,60]
[389592345,1759735390643,-152.3039649,0.00028768,120]
[389592346,1759735390679,-27139.23954164,0.00028768,120]
[389592347,1759735390716,-200.0,0.00028776,120]
[389592348,1759735390757,-533.6495537,0.000288,30]
[389592349,1759735390795,-160.0,0.000288,30]
[389592350,1759735390834,-234.17717776,0.000288,30]
[389592351,1759735390875,-293.61728183,0.000288,30]
[389592352,1759735390915,-200.0,0.000289,120]
[389592353,1759735390956,-200.0,0.000289,120]
[389592354,1759735390994,-1075.15521,0.000289,120]
[389592355,1759735391034,-230.0,0.00029,30]
[389592356,1759735391072,-394.46661,0.00029,120]
[389592357,1759735391108,-5742.19643634,0.00029,120]
[389592358,1759735391146,-2364.66252202,0.00029,120]
[389592359,1759735391183,-411.16963,0.00029,120]
[389592360,1759735391220,-1409.08,0.00029,60]
[389592361,1759735391260,-200.0,0.00029128,120]
[389592362,1759735391295,-203.0,0.00029151,33]
[389592363,1759735391333,-200.0,0.00029228,120]
[389592364,1759735391369,-189.0,0.00029276,120]
[389592365,1759735391406,-200.0,0.00029307,120]
[389592366,1759735391448,-7472.09949457,0.000295,120]
[389592367,1759735391485,-200.0,0.00029552,120]
[389592368,1759735391522,-200.0,0.00029579,120]
[389592369,1759735391559,-200.0,0.00029868,120]
[389592370,1759735391597,-200.0,0.00029892,120]
[389592371,1759735391634,-158.96351934,0.0003,60]
[389592372,1759735391672,-2062.35734863,0.0003,120]
[389592373,1759735391709,-200.0,0.0003,120]
[389592374,1759735391744,-3879.0,0.0003,120]
[389592375,1759735391779,-2282.41297105,0.0003,120]
[389592376,1759735391814,-2000.0,0.0003,120]
[389592377,1759735391849,-999.0,0.0003,120]
[389592378,1759735391882,-533.57524315,0.0003,120]
[389592379,1759735391918,-533.57524315,0.0003,120]
[389592380,1759735391958,-28623.64791675,0.0003,30]
[389592381,1759735391995,-300.0,0.0003,120]
[389592382,1759735392037,-411.16963,0.0003,120]
[389592383,1759735392073,-24080.0,0.0003,120]
[389592384,1759735392107,-3375.094,0.0003,120]
[389592385,1759735392143,-2000.24,0.0003,120]
[389592386,1759735392178,-30000.0,0.0003,60]
[389592387,1759735392214,-293.61728183,0.0003,120]
[389592388,1759735392248,-293.61728183,0.0003,120]
[389592389,1759735392281,-200.0,0.00030003,120]
[389592390,1759735392315,-8283.56,0.000301,30]
[389592391,1759735392349,-500.0,0.00030136,60]
[389592392,1759735392382,-500.0,0.00030136,60]
[389592393,1759735392416,-385.82,0.00030136,60]
[389592394,1759735392449,-500.0,0.00030136,60]
[389592395,1759735392484,-500.0,0.00030136,60]
[389592396,1759735392518,-500.0,0.00030136,60]
[389592397,1759735392552,-500.0,0.00030136,60]
[389592398,1759735392587,-500.0,0.00030136,60]
[389592399,1759735392622,-500.0,0.00030136,60]
[389592400,1759735392657,-208.74,0.00030136,60]
[389592401,1759735392693,-500.0,0.00030136,60]
[389592402,1759735392733,-500.0,0.00030136,60]
[389592403,1759735392770,-500.0,0.00030136,60]
[389592404,1759735392808,-500.0,0.00030136,60]
[389592405,1759735392844,-500.0,0.00030136,60]
[389592406,1759735392879,-500.0,0.00030136,60]
[389592407,1759735392915,-500.0,0.00030136,60]
[389592408,1759735392954,-500.0,0.00030136,60]
[389592409,1759735392993,-508.97965674,0.00030136,60]
[389592410,1759735393032,-500.0,0.00030136,60]
[389592411,1759735393194,-500.0,0.00030136,60]
[389592412,1759735393233,-2751.45270654,0.00030137,120]
[389592413,1759735393270,-5594.16025755,0.00030137,120]
[389592414,1759735393307,-248.1151235,0.00030137,120]
[389592415,1759735393342,-191.13423516,0.0003015,120]
[389592416,1759735393379,-200.0,0.00030152,120]
[389592417,1759735393417,-152.0,0.000302,120]
[389592418,1759735393452,-230.2,0.00030205,60]
[389592419,1759735393489,-200.0,0.00030215,120]
[389592420,1759735393524,-178.0,0.00030247,39]
[389592421,1759735393560,-200.0,0.00030248,120]
[389592422,1759735393596,-160.522931,0.00030259,60]
[389592423,1759735393631,-200.0,0.00030297,120]
[389592424,1759735393669,-1000.0,0.00030389,30]
[389592425,1759735393708,-492.0,0.00030389,30]
[389592426,1759735393745,-200.0,0.000304,120]
[389592427,1759735393782,-313.81868,0.000304,120]
[389592428,1759735393822,-1075.15521,0.000304,120]
[389592429,1759735393858,-200.0,0.00030476,120]
[389592430,1759735393895,-200.0,0.00030525,120]
[389592431,1759735393931,-200.0,0.00030525,120]
[389592432,1759735393969,-229.75154509,0.00030525,120]
[389592433,1759735394009,-200.0,0.0003055,120]
[389592434,1759735394049,-200.0,0.00030582,120]
[389592435,1759735394087,-200.0,0.00030684,120]
[389592436,1759735394123,-200.0,0.00030703,120]
[389592437,1759735394158,-272803.16752173,0.0003079,30]
[389592438,1759735394194,-382.74097053,0.000308,120]
[389592439,1759735394231,-200.0,0.00030838,120]
[389592440,1759735394267,-200.0,0.00030931,120]
[389592441,1759735394302,-269.0,0.00031,30]
[389592442,1759735394336,-300.0,0.00031,120]
[389592443,1759735394368,-160.0,0.00031,120]
[389592444,1759735394402,-12774.62480757,0.00031,30]
[389592445,1759735394434,-9932.59017573,0.00031,120]
[389592446,1759735394467,-234.13847417,0.00031,120]
[389592447,1759735394500,-160.0,0.00031,120]
[389592448,1759735394535,-411.16963,0.00031,120]
[389592449,1759735394568,-813534.12513038,0.00031,120]
[389596183,1759735777654,1000.0,0.00028,120]
[389596250,1759735832707,-427.20849758,0.00017197,2]
[389596251,1759735832717,-226.70448453,0.00017197,2]
[389596252,1759735832727,-346.08701789,0.00017298,2]
[389596525,1759735840726,-653.91298211,0.00017298,2]
[389596526,1759735840736,-300.0,0.00017298,2]
[389596527,1759735840746,-234.17717776,0.00017505,2]
[389596528,1759735840755,-533.6495537,0.00017505,2]
[389596529,1759735840765,-160.0,0.00017505,2]
[389596530,1759735840774,-160.0,0.00017505,2]
[389596531,1759735840784,-293.61728183,0.00017505,2]
[389596532,1759735840793,-201.86873572,0.00017505,2]
[389596533,1759735840805,-1200.0,0.00017551,2]
[389596534,1759735840814,-1200.0,0.00017552,2]
[389596535,1759735840824,-294.0,0.00017552,2]
[389596536,1759735840834,-300.0,0.00017552,2]
[389596537,1759735840844,-300.0,0.00017552,2]
[389596538,1759735840853,-6884.81778323,0.00017553,2]
[389596539,1759735840863,-980.0,0.00017554,2]
[389596540,1759735840873,-630.0,0.00017554,2]
[389596541,1759735840882,-2158.0,0.00017554,2]
[389596542,1759735840894,-410.0,0.00017554,2]
[389596543,1759735840904,-411.084,0.00017554,2]
[389596544,1759735840913,-160.0,0.00017588,2]
[389596545,1759735840923,-2927.0,0.00017617,2]
[389596546,1759735840932,-151.0,0.00017621,2]
[389596547,1759735840941,-324.0,0.00017698,2]
[389596548,1759735840950,-2016.41118555,0.000177,2]
[389596549,1759735840962,-7479.0735252,0.000177,2]
[389596550,1759735840971,-151.0,0.00017747,2]
[389596551,1759735840981,-151.0,0.00017872,2]
[389596552,1759735840990,-151.0,0.00017998,2]
[389596553,1759735840999,-348.0,0.00018098,2]
[389596555,1759735841009,-151.0,0.00018123,2]
[389596556,1759735841018,-735.36605461,0.0001813,2]
[389596557,1759735841028,-153.0,0.000182,2]
[389596558,1759735841037,-1000.0,0.000182,2]
[389596559,1759735841047,-1000.0,0.000182,3]
[389596560,1759735841060,-151.0,0.00018249,2]
[389596561,1759735841069,-394.33824899,0.000183,2]
[389596562,1759735841078,-151.0,0.00018374,2]
[389596563,1759735841088,-900.42463038,0.000184,2]
[389596564,1759735841097,-1768.07126146,0.000184,2]
[389596565,1759735841108,-281.48115753,0.00018411,3]
[389596566,1759735841118,-500.0,0.00018473,2]
[389596567,1759735841127,-278.06938357,0.00018473,2]
[389596568,1759735841136,-500.0,0.00018473,2]
[389596569,1759735841146,-502.09877333,0.00018473,2]
[389596570,1759735841155,-500.0,0.00018473,2]
[389596571,1759735841165,-500.0,0.00018473,2]
[389596572,1759735841175,-500.0,0.00018473,2]
[389596573,1759735841184,-500.0,0.00018473,2]
[389596574,1759735841194,-500.0,0.00018473,2]
[389596575,1759735841203,-500.0,0.00018473,2]
[389596576,1759735841212,-500.0,0.00018473,2]
[389596577,1759735841221,-500.0,0.00018473,2]
[389596578,1759735841231,-500.0,0.00018473,2]
[389596579,1759735841240,-505.64889148,0.00018473,2]
[389596580,1759735841249,-500.0,0.00018473,2]
[389596581,1759735841259,-500.0,0.00018473,2]
[389596582,1759735841268,-500.0,0.00018473,2]
[389596583,1759735841278,-177.57,0.00018479,2]
[389596584,1759735841287,-18603.8837,0.00018489,2]
[389596585,1759735841296,-151.0,0.00018489,2]
[389596586,1759735841307,-357.12,0.0001849,3]
[389596587,1759735841316,-178.57,0.0001849,3]
[389596588,1759735841326,-535.71,0.0001849,3]
[389596589,1759735841334,-177.57,0.0001849,2]
[389596590,1759735841344,-177.57,0.0001849,2]
[389596591,1759735841353,-177.57,0.0001849,2]
[389596592,1759735841362,-372.0,0.00018498,2]
[389596593,1759735841371,-17809.85637346,0.000185,2]
[389598165,1759735869683,-287591.74251912,0.000185,2]
[389598166,1759735869693,-369511.63138182,0.000185,2]
[389598167,1759735869703,-1159774.54893015,0.000185,2]
[389598168,1759735869713,-500.0,0.000185,2]
[389598170,1759735869722,-500.01,0.000185,2]
[389598171,1759735869732,-500.0,0.000185,2]
[389598172,1759735869741,-500.01,0.000185,2]
[389598173,1759735869751,-153.0,0.000185,2]
[389598174,1759735869761,-153.0,0.000185,2]
[389598175,1759735869770,-151.0,0.000185,2]
[389598176,1759735869780,-151.0,0.000185,2]
[389598177,1759735869790,-151.0,0.000185,2]
[389598178,1759735869800,-79221.96654578,0.000185,2]
[389598179,1759735869810,-151.0,0.000185,2]
[389598180,1759735869820,-2143.09104,0.000185,2]
[389598181,1759735869830,-2143.09104,0.000185,2]
[389598182,1759735869840,-2143.09104,0.000185,2]
[389598183,1759735869850,-2143.09104,0.000185,2]
[389598185,1759735869860,-183.944655,0.000185,2]
[389598186,1759735869870,-151.0,0.000185,2]
[389598187,1759735869880,-151.0,0.000185,2]
[389598188,1759735869889,-151.0,0.000185,2]
[389598189,1759735869901,-151.0,0.000185,2]
[389598190,1759735869914,-151.0,0.000185,2]
[389598191,1759735869924,-151.0,0.0001851,2]
[389598192,1759735869933,-168.0,0.00018516,2]
[389598193,1759735869942,-151.0,0.00018535,2]
[389598194,1759735869953,-151.0,0.00018561,2]
[389598195,1759735869962,-151.0,0.00018587,2]
[389598196,1759735869971,-461.58085335,0.00018604,2]
[389598197,1759735869981,-151.0,0.00018612,2]
[389598198,1759735869991,-151.0,0.00018638,2]
[389598199,1759735870000,-151.0,0.00018664,2]
[389598200,1759735870010,-168.0,0.00018679,2]
[389598201,1759735870019,-151.0,0.00018689,2]
[389598202,1759735870028,-168.0,0.00018708,2]
[389598203,1759735870038,-168.0,0.00018711,2]
[389598204,1759735870047,-151.0,0.00018715,2]
[389598205,1759735870057,-151.0,0.00018741,2]
[389598206,1759735870067,-168.0,0.00018743,2]
[389598207,1759735870076,-500.0,0.00018747,2]
[389598209,1759735870086,-151.0,0.00018766,2]
[389598210,1759735870096,-889.0,0.00018766,2]
[389598211,1759735870105,-500.0,0.00018774,2]
[389598212,1759735870114,-577.34,0.00018774,2]
[389598213,1759735870123,-151.0,0.00018792,2]
[389598214,1759735870132,-151.0,0.00018817,2]
[389598215,1759735870141,-151.0,0.00018843,2]
[389598216,1759735870151,-168.0,0.00018847,2]
[389598217,1759735870160,-151.0,0.00018869,2]
[389598218,1759735870169,-300.0,0.00018869,2]
[389598219,1759735870178,-300.0,0.00018869,2]
[389598220,1759735870187,-300.0,0.00018869,2]
[389598221,1759735870196,-300.0,0.00018869,2]
[389598222,1759735870205,-300.0,0.00018869,2]
[389598223,1759735870215,-300.0,0.00018869,2]
[389598224,1759735870224,-300.0,0.00018869,2]
[389598225,1759735870233,-300.0,0.00018869,2]
[389598226,1759735870243,-300.0,0.00018869,2]
[389598227,1759735870252,-300.0,0.00018869,2]
[389598228,1759735870261,-300.0,0.00018869,2]
[389598229,1759735870271,-300.0,0.00018869,2]
[389598230,1759735870280,-300.0,0.00018869,2]
[389598231,1759735870290,-300.0,0.00018869,2]
[389598232,1759735870299,-300.0,0.00018869,2]
[389598233,1759735870308,-600.0,0.00018869,2]
[389598235,1759735870317,-250.0,0.00018884,2]
[389598236,1759735870327,-151.0,0.00018894,2]
[389598237,1759735870336,-396.0,0.00018898,2]
[389598238,1759735870345,-151.0,0.0001892,2]
[389598239,1759735870354,-151.0,0.00018946,2]
[389598240,1759735870364,-168.0,0.00018956,2]
[389598241,1759735870373,-151.0,0.00018971,2]
[389598242,1759735870383,-168.0,0.00018972,2]
[389598243,1759735870392,-168.0,0.00018984,2]
[389598244,1759735870401,-151.0,0.00018997,2]
[389598245,1759735870410,-1000.0,0.00019,2]
[389598246,1759735870421,-158.15,0.00019,2]
[389598247,1759735870430,-168.0,0.00019016,2]
[389598248,1759735870439,-203.81341681,0.00019021,2]
[389598249,1759735870449,-1000.0,0.00019021,2]
[389598250,1759735870458,-1001.64001291,0.00019021,2]
[389598251,1759735870468,-1000.0,0.00019021,2]
[389598252,1759735870477,-207.68461608,0.00019021,2]
[389598253,1759735870486,-1000.0,0.00019021,2]
[389598254,1759735870495,-632.56765264,0.00019021,2]
[389598255,1759735870504,-1000.0,0.00019021,2]
[389598256,1759735870513,-1000.0,0.00019021,2]
[389598257,1759735870523,-1000.0,0.00019021,2]
[389598258,1759735870532,-151.0,0.00019023,2]
[389598259,1759735870541,-168.0,0.00019028,2]
[389598260,1759735870550,-19292.2273969,0.00019037,2]
[389598261,1759735870560,-151.0,0.00019037,2]
[389598262,1759735870570,-151.0,0.00019037,2]
[389598264,1759735870580,-160.0,0.00019038,2]
[389598265,1759735870589,-889.0,0.0001904,2]
[389598266,1759735870598,-500.0,0.00019048,2]
[389598267,1759735870607,-151.0,0.00019048,2]
[389598268,1759735870616,-79182.65108435,0.00019063,7]
[389598269,1759735870626,-293.61728183,0.00019063,7]
[389598270,1759735870635,-533.6495537,0.0001907,7]
[389598271,1759735870644,-500.0,0.00019073,2]
[389598272,1759735870653,-500.0,0.00019073,2]
[389598273,1759735870662,-500.0,0.00019073,2]
[389598274,1759735870672,-500.0,0.00019073,2]
[389598275,1759735870681,-151.0,0.00019074,2]
[389598276,1759735870691,-151.0,0.000191,2]
[389598277,1759735870700,-250.3,0.000191,2]
[389598278,1759735870710,-168.0,0.00019103,2]
[389598279,1759735870719,-797.39925015,0.00019178,2]